Cogmind - Beta 13 @@@ ROGUE MODE // 2024.04.17 @ 10:56:21 Player: H3-RMN Result: Destroyed by S-10 Pest with Light Assault Rifle Performance ------------- Evolutions (0) 0 Regions Visited (4) 800 Robots Destroyed (35) 175 Value Destroyed (723) 723 Prototype IDs (27) 540 Alien Tech Used (0) 0 Bonus (300) 300 TOTAL SCORE: 2538 Bonus ------- Aligned with FarCom 300 Cogmind --------- Core Integrity 0/250 Matter 300/300 Energy 124/125 System Corruption 4% Temperature Cool (93) Movement Rolling (395) Ox21 Location -9/Mines Parts ------- > --- POWER (1) -------- Light Ion Engine (fused) > --- PROPULSION (2) --- Light Treads Wheel (fused) > --- UTILITY (2) ------ Humpback > --- WEAPON (2) ------- AWS/Thermal (fused) > --- INVENTORY (35) --- Light Ion Engine Wheel Compact Wheel Large Storage Unit Large Storage Unit Large Matter Pod (150) Large Matter Pod (150) Large Matter Pod (150) Improved Terrain Scanner Hacking Suite Bomb Drone Bay (12/16) Chronowheel EM Pulse Gun Light Assault Rifle Light Assault Rifle Rocket Launcher Field Lobotomy Kit (5) Hammer Peak State ------------ > --- POWER ------------ Light Ion Engine > --- PROPULSION ------- Light Treads Wheel > --- UTILITY ---------- Large Storage Unit Large Matter Pod > --- WEAPON ----------- AWS/Thermal > --- INVENTORY -------- Light Ion Engine Wheel Compact Wheel Large Storage Unit Improved Terrain Scanner Hacking Suite Bomb Drone Bay Chronowheel EM Pulse Gun Light Assault Rifle Light Assault Rifle Rocket Launcher Field Lobotomy Kit Hammer [Rating: 26] Favorites ----------- Power Light Ion Engine Engine Light Ion Engine Propulsion Light Treads Treads Light Treads Wheel Wheel Utility Large Storage Unit Device Sensor Array Storage Large Storage Unit Protection Backup Plating I Weapon Hammer Energy Gun AWS/Thermal Energy Cannon Beam Cannon Ballistic Gun Light Assault Rifle Impact Weapon Hammer Slashing Weapon Mining Claw Build | -11 -10 -10 -10 -9 ------- Run | Yrd Mat Min Exi Min Slots Evolved . | . . . . . Power . | . . . . . Propulsion . | . . . . . Utility . | . . . . . Weapon . | . . . . . Parts Attached 44 | 8 21 11 4 . Power 5 | 1 3 1 . . Engine 5 | 1 3 1 . . Core . | . . . . . Reactor . | . . . . . Propulsion 10 | 2 5 3 . . Treads 3 | 1 1 1 . . Leg . | . . . . . Wheel 7 | 1 4 2 . . Hover . | . . . . . Flight . | . . . . . Utility 13 | 3 4 3 3 . Device 3 | 1 1 1 . . Storage 9 | 2 2 2 3 . Processor . | . . . . . Hackware . | . . . . . Protection 1 | . 1 . . . Artifact . | . . . . . Weapon 16 | 2 9 4 1 . Energy Gun 7 | 2 4 . 1 . Energy Cannon 1 | . . 1 . . Ballistic Gun 2 | . 1 1 . . Ballistic Cannon . | . . . . . Launcher . | . . . . . Special Weapon . | . . . . . Impact Weapon 5 | . 3 2 . . Slashing Weapon 1 | . 1 . . . Piercing Weapon . | . . . . . Special Melee Weapon . | . . . . . Unidentified Prototypes 1 | . . 1 . . Parts Lost 7 | . 7 . . . Power 1 | . 1 . . . Propulsion 3 | . 3 . . . Utility 2 | . 2 . . . Weapon 1 | . 1 . . . Highest Loss Streak 2 | . 2 . . . To Critical Strikes . | . . . . . Average Slot Usage (%) 85 | . 97 74 84 71 Engine 12 | . 13 9 14 14 Treads 13 | . 13 13 14 14 Wheel 12 | . 13 9 14 14 Device 3 | . 1 8 . . Storage 15 | . 15 12 21 14 Protection 4 | . 9 . . . Energy Gun 8 | . 12 . 8 14 Ballistic Gun 2 | . 3 3 . . Impact Weapon 9 | . 11 11 10 . Naked Turns 2 | . . 2 . . Heaviest Build 211 | 13 30 30 211 211 Greatest Support 20 | 20 16 10 10 10 Greatest Overweight (x) 21 | . 2 3 21 21 Average Overweight (x) 2 | . . 1 5 21 Largest Inventory Capacity 35 | 8 15 15 35 35 Average Capacity 16 | 7 11 11 22 35 Most Carried 19 | 8 15 15 19 19 Average Carried 12 | 3 10 10 15 19 Final Capacity 35 | 8 15 15 35 35 Final Carried 19 | 8 13 15 19 19 Class Distribution -------------------- 78% | Mutant 21% | Hauler-Mutant Dominant Class ---------------- Mutant | -10/Materials Mutant | -10/Mines Mutant | -10/Exiles Hauler-Mutant | -9/Mines Resources | -11 -10 -10 -10 -9 ----------- Run | Yrd Mat Min Exi Min Matter Collected 1059 | 306 363 167 137 86 Remotely . | . . . . . Salvage Created 1191 | 116 731 161 . 183 Parts 62 | 8 47 2 . 5 Haulers Intercepted 1 | . 1 . . . Recyclers Shooed 2 | . 2 . . . Parts Field Recycled . | . . . . . Retrieved Matter . | . . . . . Parts Self-Destructed . | . . . . . Prevented . | . . . . . Kills | -11 -10 -10 -10 -9 ------- Run | Yrd Mat Min Exi Min Combat Hostiles Destroyed 22 | . 17 . . 5 Melee 8 | . 8 . . . Guns 14 | . 9 . . 5 Classes Destroyed 9 | 3 5 . . 1 Worker 3 | 1 2 . . . Tunneler 1 | 1 . . . . Hauler 1 | . 1 . . . Recycler 4 | 1 1 2 . . Operator 3 | . 3 . . . Watcher 2 | . 2 . . . Swarmer 5 | . 5 . . . Grunt 16 | . 12 . . 4 Assembled 1 | . . . . 1 Best Kill Streak 3 | 2 3 1 . 2 Combat Bots Only 3 | . 3 . . 2 Max Kills in Single Turn 1 | 1 1 1 . 1 Gunslinging . | . . . . . Exploded . | . . . . . Melee 1 | . 1 . . . Uniques/NPCs Destroyed . | . . . . . Combat | -11 -10 -10 -10 -9 -------- Run | Yrd Mat Min Exi Min Hostile Shots Fired 179 | . 160 . . 19 Missed 38 | . 30 . . 8 Damage Taken 1326 | . 1230 . . 96 Core 258 | . 249 . . 9 Absorbed by Shields . | . . . . . Core Remaining (%) 100 | 100 . . . . Volleys Fired 59 | 12 47 . . . Largest 2 | 2 2 . . . Hottest 90 | 80 90 . . . Shots Fired 118 | 24 84 . . 10 Gun 118 | 24 84 . . 10 Cannon . | . . . . . Launcher . | . . . . . Special . | . . . . . Kinetic 28 | . 28 . . . Thermal 85 | 24 51 . . 10 Explosive . | . . . . . Electromagnetic 5 | . 5 . . . Robot Hit Streak 11 | 8 9 . . 11 Robot Miss Streak 4 | 3 4 . . . Penetration Max . | . . . . . Secondary Targets 2 | . 2 . . . Max Gunslinging Chain 1 | . 1 . . . Autonomous 10 | . . . . 10 Shots Hit Robots 111 | 18 81 2 . 10 Core Hits 43 | 4 33 1 . 5 Critical Kills 2 | . 2 . . . Critical Parts Destroyed 3 | . 2 1 . . Critical Strikes 5 | . 4 1 . . Smash 5 | . 4 1 . . Melee Attacks 55 | . 53 2 . . Impact 45 | . 43 2 . . Slashing 10 | . 10 . . . Piercing . | . . . . . Sneak Attacks 9 | . 7 2 . . Combat Hostiles . | . . . . . Follow-up Attacks 3 | . 3 . . . Damage Inflicted 2192 | 199 1602 107 . 284 Guns 1026 | 199 543 . . 284 Cannons . | . . . . . Explosions . | . . . . . Melee 1166 | . 1059 107 . . Ramming . | . . . . . Kinetic 144 | . 144 . . . Thermal 866 | 199 383 . . 284 Explosive . | . . . . . Electromagnetic 16 | . 16 . . . Impact 965 | . 858 107 . . Slashing 201 | . 201 . . . Piercing . | . . . . . Highest Corruption 4 | . 4 4 4 4 Average Corruption 3 | . 3 4 4 4 Corruption Purged . | . . . . . Corruption Blocked . | . . . . . Effects 54 | . 10 17 10 17 Message Errors 15 | . 5 4 3 3 Matter Fused 15 | . 2 7 2 4 Heat Flow Errors 6 | . 1 2 1 2 Energy Discharges 6 | . . . 1 5 Parts Rejected 1 | . 1 . . . Parts Fused 3 | . . . 2 1 Data Loss (minor) 4 | . 1 2 1 . Data Loss (major) 4 | . . 2 . 2 Overload Shots . | . . . . . Overflow Damage 196 | . 160 36 . . Projectiles . | . . . . . Explosions . | . . . . . Melee 196 | . 160 36 . . Knockbacks 4 | . 4 . . . Impact 4 | . 4 . . . Kinetic . | . . . . . Secondary . | . . . . . Self-Inflicted Damage . | . . . . . Shots . | . . . . . Rammed . | . . . . . Targets Rammed . | . . . . . Kicked . | . . . . . Crushed . | . . . . . Highest Temperature 266 | 84 225 247 154 266 Average Temperature 82 | 35 88 111 84 133 Received Heat Transfer 405 | . 387 . . 18 Effects 3 | . 1 2 . . Energy Bleed 1 | . . 1 . . Interference 2 | . 1 1 . . Siege Activations . | . . . . . Robots Corrupted . | . . . . . Combat Hostiles . | . . . . . Parts Fried 5 | . 4 1 . . Impact Corruptions 10 | . 8 2 . . Robots Melted . | . . . . . Combat Hostiles . | . . . . . Parts Melted 3 | 2 1 . . . Heat Transferred 1799 | 450 1016 . . 333 Parts Sabotaged . | . . . . . Parts Stolen . | . . . . . Parts Stripped . | . . . . . Power Chain Reactions . | . . . . . Alert | -11 -10 -10 -10 -9 ------- Run | Yrd Mat Min Exi Min Peak Influence 277 | 15 277 93 . 81 Initial 93 | . 9 93 . . Average 86 | 3 148 44 . 7 Maximum Alert Level 1 | . 1 . . . Low Security (%) 85 | 100 70 100 . 100 Level 1 14 | . 29 . . . Level 2 . | . . . . . Level 3 . | . . . . . Level 4 . | . . . . . Level 5 . | . . . . . High Security . | . . . . . Max Security . | . . . . . Squads Dispatched 6 | . 6 . . . Investigation 3 | . 3 . . . Extermination . | . . . . . Reinforcement 3 | . 3 . . . Assault . | . . . . . Garrison . | . . . . . Intercept . | . . . . . Searches Triggered . | . . . . . Construction Impeded . | . . . . . Haulers Reinforced . | . . . . . Active Scanning Responses . | . . . . . Cargo Convoy Interrupts . | . . . . . Stealth | -11 -10 -10 -10 -9 --------- Run | Yrd Mat Min Exi Min Distress Signals 5 | . 4 . . 1 Communications Jammed . | . . . . . Distress Signals . | . . . . . Times Spotted 46 | . 29 10 . 7 Peak Tracking Total 20 | . 4 20 . 3 Tactical Retreats 5 | . 4 1 . . Traps | -11 -10 -10 -10 -9 ------- Run | Yrd Mat Min Exi Min Traps Triggered 2 | . 2 . . . Indirectly . | . . . . . Trap Hack Attempts . | . . . . . Triggered . | . . . . . Disarmed . | . . . . . Reprogrammed . | . . . . . Reused . | . . . . . Traps Extracted . | . . . . . Installed . | . . . . . Triggered . | . . . . . Machines | -11 -10 -10 -10 -9 ---------- Run | Yrd Mat Min Exi Min Machines Disabled . | . . . . . Max in Single Turn . | . . . . . Machines Repaired . | . . . . . Machines Dismantled . | . . . . . Machines Sabotaged . | . . . . . Overloaded Fab Kills . | . . . . . Hacking | -11 -10 -10 -10 -9 --------- Run | Yrd Mat Min Exi Min Machines Accessed 12 | . 9 1 2 . Terminals 6 | . 6 . . . Fabricators . | . . . . . Repair Stations 1 | . 1 . . . Recycling Units 2 | . 2 . . . Scanalyzers . | . . . . . Garrison Access . | . . . . . Total Hacks 28 | . 22 1 5 . Successful 17 | . 11 1 5 . Failed 11 | . 11 . . . Catastrophic 2 | . 2 . . . Database Lockouts . | . . . . . Manual 13 | . 12 . 1 . Terminals 18 | . 18 . . . Fabricators . | . . . . . Repair Stations 1 | . 1 . . . Recycling Units 3 | . 3 . . . Scanalyzers . | . . . . . Garrison Access . | . . . . . Terminal Hacks 13 | . 7 1 5 . Record 4 | . . . 4 . Part Schematic 1 | . 1 . . . Robot Schematic 1 | . 1 . . . Robot Analysis 3 | . 3 . . . Prototype ID Bank 1 | . 1 . . . Open Door 1 | . . 1 . . Terminal Index 1 | . 1 . . . Derelict Proto ID Bank 1 | . . . 1 . Fabricator Hacks . | . . . . . Repair Station Hacks 1 | . 1 . . . Refit 1 | . 1 . . . Recycling Unit Hacks 2 | . 2 . . . Report Inventory 2 | . 2 . . . Scanalyzer . | . . . . . Garrison Access Hacks . | . . . . . Unauthorized Hacks 1 | . 1 . . . Terminals . | . . . . . Fabricators . | . . . . . Repair Stations . | . . . . . Recycling Units 1 | . 1 . . . Tunnel 1 | . 1 . . . Scanalyzers . | . . . . . Garrison Access . | . . . . . Data Cores Recovered . | . . . . . Used . | . . . . . Hacking Detections 6 | . 6 . . . Full Trace Events 2 | . 2 . . . Feedback Events . | . . . . . Feedback Blocked . | . . . . . Robot Schematics Acquired 1 | . 1 . . . Robots Built . | . . . . . Authchips . | . . . . . Time . | . . . . . Total Robot Build Rating . | . . . . . Part Schematics Acquired 1 | . 1 . . . Parts Built . | . . . . . Authchips . | . . . . . Time . | . . . . . Total Part Build Rating . | . . . . . Parts Repaired . | . . . . . Time . | . . . . . Parts Recycled . | . . . . . Recycled Matter . | . . . . . Retrieved Matter . | . . . . . Retrieved Components . | . . . . . Parts Scanalyzed . | . . . . . Part Schematics Acquired . | . . . . . Parts Damaged . | . . . . . Bothacking | -11 -10 -10 -10 -9 ------------ Run | Yrd Mat Min Exi Min Used RIF Installer . | . . . . . Robots Hacked . | . . . . . Non-combat . | . . . . . Combat . | . . . . . Robot Hacks Applied . | . . . . . Relay Couplers Released . | . . . . . Fabnet Peak Effective % . | . . . . . Robots Rewired . | . . . . . Allies Hacked . | . . . . . Hacks Repelled . | . . . . . Allies | -11 -10 -10 -10 -9 -------- Run | Yrd Mat Min Exi Min Total Allies 1 | . . 1 . . Largest Group 1 | . . 1 . . Highest-Rated Group 31 | . . 31 . . Highest-Rated Ally 31 | . . 31 . . Total Orders 6 | . . 6 . . EXPLORE 5 | . . 5 . . RETURN 1 | . . 1 . . Ally Attacks 12 | . . 12 . . Total Damage 82 | . . 82 . . Kills 1 | . . 1 . . Allies Corrupted 1 | . . 1 . . Allies Melted . | . . . . . Intel | -11 -10 -10 -10 -9 ------- Run | Yrd Mat Min Exi Min Robot Analysis Total 3 | . 3 . . . Derelict Logs Recovered 2 | . . 1 . 1 Drone Launches 5 | . . 5 . . Drone Recoveries 1 | . . 1 . . Exploration | -11 -10 -10 -10 -9 ------------- Run | Yrd Mat Min Exi Min Turns Passed 3556 | 142 1461 863 538 552 Spaces Moved 1866 | 71 825 569 323 78 Core 112 | 3 . 109 . . Treads 22 | 22 . . . . Legs . | . . . . . Wheels 1732 | 46 825 460 323 78 Hover . | . . . . . Flight . | . . . . . Fastest Speed 50 | 50 100 50 95 395 Average Speed 128 | 116 106 107 159 395 Slowest Speed 395 | 160 115 200 395 395 Overloaded Moves . | . . . . . Propulsion Burnouts . | . . . . . Robots Hopped . | . . . . . Cave-ins Triggered . | . . . . . Exploration Rate (%) 57 | 4 97 98 69 21 Regions Visited 4 Branch Regions 3 Pre-discovered Areas 4 | . 1 1 1 1 Known Exits Taken . | . . . . . Unknown Exits Taken 4 | 1 1 1 1 . Scrap Searched 2 | . . 1 . 1 Spaces Dug . | . . . . . Terrain Destroyed 1 | . . . . 1 Melee . | . . . . . Projectile 1 | . . . . 1 AOE . | . . . . . Terrain Rammed . | . . . . . Walls Destroyed . | . . . . . Machines Disabled . | . . . . . Actions | -11 -10 -10 -10 -9 --------- Run | Yrd Mat Min Exi Min Total 2833 | 102 1243 811 352 325 Wait 735 | 4 269 213 2 247 Move 1862 | 70 824 568 322 78 Hop . | . . . . . Pick Up 58 | 7 20 15 16 . Fast Attach 18 | 8 3 4 3 . Attach 12 | . 7 4 1 . Detach 2 | 1 . . 1 . Swap 14 | . 11 3 . . Drop 24 | . 15 2 7 . Fire 59 | 12 47 . . . Melee 49 | . 47 2 . . Ram . | . . . . . Kick . | . . . . . Crush . | . . . . . Escape Stasis . | . . . . . Rewire . | . . . . . Trap . | . . . . . Miscellaneous . | . . . . . Route ------- -11/Scrapyard -10/Materials (discovered 4 exits: [*Mat x3] / *Min) -10/Mines (discovered 3 exits: [*Mat x2] / *Exi) -10/Exiles -9/Mines History --------- Turn | Location | Event 2 | -11/Scrapyard | Met Revision 17 15 | -11/Scrapyard | Discovered new exit (range 15) 143 | -11/Scrapyard | Entered Materials 307 | -10/Materials | Build established: Mutant 720 | -10/Materials | Discovered new exit (range 6) 1007 | -10/Materials | Discovered new exit (range 14) 1089 | -10/Materials | Discovered new exit (range 16) 1122 | -10/Materials | Core integrity fell below 50% 1304 | -10/Materials | Core integrity fell below 20% 1517 | -10/Materials | Discovered new exit (range 8) 1604 | -10/Materials | Entered Mines 1636 | -10/Mines | Found the Drone Emporium 1642 | -10/Mines | Found Prototype Device 1823 | -10/Mines | Received a Rocket Launcher from a helpful Derelict 1834 | -10/Mines | Discovered new exit (range 10) 1924 | -10/Mines | Received a Mining Laser from a helpful Derelict 1964 | -10/Mines | Assembled infested the area 1978 | -10/Mines | Released all parts (7) 2062 | -10/Mines | Identified Bomb Drone Bay 2121 | -10/Mines | Discovered new exit (range 33) 2425 | -10/Mines | Learned location of Recycling (-9) 2462 | -10/Mines | Deemed a non-threat by the Exiles lab entrance 2462 | -10/Mines | Discovered new exit (range 5) 2467 | -10/Mines | Entered Exiles 2495 | -10/Exiles | Met 8R-AWN 2511 | -10/Exiles | Met EX-HEX 2568 | -10/Exiles | Met EX-DEC 2587 | -10/Exiles | Learned location of Zion (-7) 2608 | -10/Exiles | Met EX-BIN 2624 | -10/Exiles | Aligned with FarCom system 2625 | -10/Exiles | Given EX-Vault access code 2652 | -10/Exiles | Opened EX-Vault 2664 | -10/Exiles | Found AWS/Thermal 2672 | -10/Exiles | Found Chronowheel 2680 | -10/Exiles | Found Field Lobotomy Kit 2707 | -10/Exiles | Warned to stay clear of 0b10 Research branches 2955 | -10/Exiles | Discovered new exit (range 14) 3005 | -10/Exiles | Stole three prototypes: AWS/Thermal, Chronowheel, Field Lobotomy Kit 3005 | -10/Exiles | Entered Mines 3077 | -9/Mines | Build established: Hauler-Mutant 3291 | -9/Mines | Excavation squad dispatched 3291 | -9/Mines | A large section of the Mines collapsed 3541 | -9/Mines | Excavation squad dispatched 3557 | -9/Mines | Destroyed by S-10 Pest with Light Assault Rifle Last Messages --------------- 03476_ T-07 Excavator is excavating. 03477_ U-05 Engineer lays Concrete. 03482_ Searching scrap... 03482_ Found Cooling System. 03482_ Found Imp. Light Cannon. 03482_ Found Lgt. Cannon. 03482_ Found 11 Matter. 03483_ Acquired 11 matter. 03485_ G-34 Mercenary destroyed. 03489_ T-07 Excavator destroyed. 03493_ T-07 Excavator sends out distress signal. 03495_ System corrupted: Energy discharge (-27). 03521_ G-34 Mercenary destroyed. 03529_ Acquired 9 matter. 03539_ G-34 Mercenary destroyed. 03541_ ALERT: Derelict activity in mines confirmed. Dispatching additional escorted excavation squad. 03551_ S-10 Pest destroyed. 03556_ System corrupted: Heat flow error (+113). Map ----- +----------------------------------------------------+ | ?????????????????????????????????????????????????? | | ?????????????????????????????????????????????????? | | ?????????????????????????????????????????????????? | | ?????????????????????????????????????????????????? | | ?????????????????????????????????????????????????? | | ?????????????????????????????????????????????????? | | ?????????????????????????????????????????????????? | | ?????????????????????????????????????????????????? | | ?????????????????????????????????????????????????? | | ?????????????????????????????????????????????????? | | ?????????????????????????????????????????????????? | | ?????????????????????????????????????????????????? | | ??????????????????????????????# ????????????????? | | ?????????????????????????????? ??????????????? | | ????????????????????????????? #????????????? | | ????????????????????????????? ?????????????? | | ??????????????#########?????# #?????????????? | | ??????????????# """" #????# #??????????????? | | ??????????????# """" #???# #???????????????? | | ??????????????# """" #?## #????????????????? | | ??????????????# ### #?????????????????? | | ??????????????# ## #?????????????????? | | ??????????????#### #### #?????????????????? | | ?????????????????# #?## #?????????????????? | | ?????????????????# #?# ##????????????????? | | ?????????????#####%### @ #????????????????? | | ?????????????#! ] * #???????????????? | | ?????????????#] t r #????????????? | | ???????#######%!####### *%s ??????????? | | ????# %% #?????## s ?????????? | | ???????#######* #??????## ## #??????????? | | ?????????????# #???????### ##??? ##??????????? | | ?????????????# ##?????????# ##?????????????????? | | ????????????## "##?????????###??????????????????? | | ???????????## " #??????????????????????????????? | | ???????????# ###????????????????????????????? | | ???????????# " # ?????????????????????????????? | | ???????????## " #??????????????????????????????? | | ????????????#" ##??????????????????????????????? | | ??????????#### %##???????????????????????????????? | | ??????????# "#???????????????????????????????? | | ??????????# #####????????????????????????????? | | ??????????# !### ####### ##???????????????????? | | ??????##### ! ! #?????????????????? | | ?????## ## !!! #########???????????????????? | | ?????# # ##???????????????????????????? | | ????## #### #????????????????????????????? | | ?#### ##????????????????????????????? | | ?# ##?????????????????????????????? | | ?# #??????????????????????????????? | +----------------------------------------------------+ Best States ------------- Heat Dissipation 25 Energy Generation 10 Energy Capacity 250 Matter Stores 450 Matter Capacity 450 Sight Range 16 Robot Scan Range 14 Terrain Scan Range 16 Terrain Scan Density 10 Armor Coverage 80 Evasion (%) 50 Recoil Reduction 1 Item Schematics ----------------- Cargo Storage Unit | -10/Materials | Hacked Robot Schematics ------------------ O-16 Technician | -10/Materials | Hacked Fabricated ------------ Nothing Alien Tech Used ----------------- None Achievements -------------- None Challenges ------------ None Game ------ Seed ChromaticArcDetector Manual? 0 Play Time 00:30:26 Cumulative 700.9 hours Start 2024.04.17 @ 10:03:43 End 2024.04.17 @ 10:56:21 Sessions 1 Manual Loads 0 Difficulty Rogue Special Mode None Game No. 289 Rogue 261 Adventurer 3 Explorer 25 Win Type - Total 16 Types 10/3/1/1/0/1/0/0/0 Lore% 91 Gallery% 96 Achievement% 85 Wizard Run 0 Options --------- Layout 2 ASCII 0 Keyboard 0 Movement Numpad Keybinds 0 Fullscreen 2 Font 24/Smallcaps Map View 50x44 Zoom Use 0% Tactical HUD 1 Map Filters NONE Filters NONE Steam 1 RUN: c79eee19-2162-4e53-b50b-e2baa4eeb403